bitfinex-derivatives/quotes_SOLF0:USTF0_20250117
["timestamp","ask_amount","ask_price","bid_price","bid_amount"]
[1737078416691,4.649,215.13,215.07,4.6503]
[1737078416893,0.69967845,215.12,215.01,18.34980615]
[1737078417095,4.4393,215.15,215.01,18.34980615]
[1737078417396,0.69962749,215.14,215.01,18.34980615]
[1737078417797,0.69962749,215.14,215.1,4.6495]
[1737078417996,2.9979,215.15,215.1,4.6495]
[1737078418195,2.9979,215.15,215.01,18.34980615]
[1737078418998,1.5145,215.15,215.01,18.34980615]
[1737078419194,128.23323363,215.24,214.98,3.0845]
[1737078419195,131.10033363,215.24,215.09,18.34980615]
[1737078419396,0.69931758,215.23,215.09,18.34980615]
[1737078419599,4.6477,215.19,215.05,18.34980615]
[1737078419802,26.49690615,215.24,215.05,18.34980615]
[1737078419997,18.34980615,215.2,215.09,4.6499]
[1737078420201,4.6485,215.16,215.09,4.6499]
[1737078420398,18.34980615,215.16,214.98,21.43430615]
[1737078420703,5.97957498,215.15,214.98,21.43430615]
[1737078420905,4.6496,215.11,214.98,21.43430615]
[1737078421299,1.5539,215.14,214.98,21.43430615]
[1737078421498,6.2027,215.14,214.98,21.43430615]
[1737078421698,6.2027,215.14,215.02,4.6512]
[1737078421897,1.5539,215.14,214.98,21.43430615]
[1737078423202,4.6492,215.12,214.98,21.43430615]
[1737078423400,4.6492,215.12,215.06,4.6505]
[1737078424301,6.2029,215.14,215.07,4.6502]
[1737078424795,1.5539,215.14,214.98,21.43430615]
[1737078426099,0.69956432,215.13,214.98,21.43430615]
[1737078426404,5.34856432,215.13,214.98,21.43430615]
[1737078426595,0.69956432,215.12,214.98,21.43430615]
[1737078426994,0.69956432,215.12,215.06,4.6504]
[1737078427500,0.69956432,215.12,215.01,11.42514247]
[1737078427804,0.69956432,215.11,214.98,14.50964247]
[1737078428303,5.34916432,215.11,215.04,4.6509]
[1737078428499,4.6496,215.11,215.04,4.6509]
[1737078428701,1.5539,215.14,215.01,11.42514247]
[1737078429005,0.69959713,215.13,215.04,11.42514247]
[1737078429209,11.42514247,215.21,215.07,11.42514247]
[1737078429403,4.6479,215.18,215.12,4.6492]
[1737078429604,5.26,215.2,215.07,11.42514247]
[1737078429804,0.69925924,215.19,215.07,11.42514247]
[1737078430110,21.33244247,215.21,215.08,1.4956]
[1737078430299,0.69922969,215.2,215.08,1.4956]
[1737078430699,5.34672969,215.2,215.08,1.4956]
[1737078430904,4.6475,215.2,215.08,1.4956]
[1737078431107,0.69928808,215.19,215.08,1.4956]
[1737078431404,0.69928808,215.19,215.15,4.6485]
[1737078431604,16.68514247,215.21,215.08,1.4956]
[1737078431906,4.6482,215.17,215.12,4.6492]
[1737078432599,4.6478,215.19,215.13,4.6489]
[1737078432798,0.69937035,215.18,215.13,4.6489]
[1737078433201,5.34737035,215.18,215.13,4.6489]
[1737078433404,4.648,215.18,215.13,4.6489]
[1737078433599,16.68514247,215.21,215.08,1.4956]
[1737078433800,4.6482,215.17,215.08,1.4956]
[1737078434202,0.69941577,215.16,215.04,11.42514247]
[1737078434407,5.26,215.21,215.04,11.42514247]
[1737078434408,12.12455824,215.15,215.06,4.6505]
[1737078434610,0.69941577,215.14,215.04,11.42514247]
[1737078434800,0.69941577,215.14,215.01,11.42514247]
[1737078435503,4.6497,215.1,215.05,4.6506]
[1737078435899,1.4679,215.14,215.01,11.42514247]
[1737078436105,4.6495,215.11,215.06,4.6505]
[1737078436300,0.69963294,215.1,215.01,11.42514247]
[1737078436502,1.4368,215.13,215.01,11.42514247]
[1737078436705,4.6501,215.08,215.03,4.651]
[1737078436910,16.66514247,215.12,214.99,1.5539]
[1737078437110,4.6501,215.08,215.03,4.6511]
[1737078437313,16.66514247,215.12,214.99,1.5539]
[1737078437511,2.23549887,215.11,214.99,1.5539]
[1737078437812,4.6505,215.06,214.99,1.5539]
[1737078438009,11.42514247,215.09,214.95,11.42514247]
[1737078438207,11.42514247,215.06,214.92,11.42514247]
[1737078438411,0.69981475,215.05,214.92,11.42514247]
[1737078438811,2.20131475,215.05,214.92,11.42514247]
[1737078439010,4.6516,215.01,214.94,4.6529]
[1737078439313,16.64514247,215.03,214.89,11.42514247]
[1737078439514,4.6518,215.0,214.89,11.42514247]
[1737078439909,0.70006038,214.99,214.89,11.42514247]
[1737078440111,0.70006038,214.98,214.91,4.6536]
[1737078440311,0.70006038,214.97,214.89,11.42514247]
[1737078440513,6.95986754,215.02,214.89,11.42514247]
[1737078440716,11.42514247,215.0,214.89,11.42514247]
[1737078440903,0.70013271,214.99,214.89,11.42514247]
[1737078441105,0.7001328,214.98,214.89,11.42514247]
[1737078441308,0.7001328,214.97,214.89,11.42514247]
[1737078441504,11.42514247,215.0,214.89,11.42514247]
[1737078441711,0.70015974,214.99,214.86,11.42514247]
[1737078441908,11.42514247,214.97,214.85,1.4514]
[1737078442113,4.6532,214.94,214.87,4.6544]
[1737078442415,11.42514247,214.97,214.85,1.4514]
[1737078442615,0.70019508,214.96,214.91,4.6536]
[1737078442813,4.6523,214.98,214.91,4.6536]
[1737078443011,0.70018551,214.97,214.91,4.6536]
[1737078443211,0.70018551,214.97,214.93,4.6533]
[1737078443411,6.1482,214.99,214.93,4.6533]
[1737078443714,0.70008145,214.98,214.93,4.6533]
[1737078443905,0.70008145,214.98,214.92,4.6535]
[1737078444111,4.6517,215.01,214.89,11.42514247]
[1737078444312,11.42514247,214.97,214.85,1.4514]
[1737078444514,0.70005267,214.96,214.89,4.6541]
[1737078445313,11.42514247,214.94,214.78,4.98512153]
[1737078445513,0.70005267,214.93,214.79,11.42514247]
[1737078445709,5.22,214.92,214.79,11.42514247]
[1737078445909,0.70005267,214.91,214.79,11.42514247]
[1737078446116,0.70005267,214.91,214.83,11.42514247]
[1737078446419,5.22,214.92,214.87,4.6546]
[1737078446718,1.5155,214.93,214.78,1.4385]
[1737078447015,0.7003293,214.92,214.87,4.6546]
[1737078447814,0.7003293,214.92,214.82,11.42514247]
[1737078448010,0.7003293,214.92,214.85,4.6549]
[1737078448417,0.7003293,214.92,214.8,11.42514247]
[1737078449219,4.6538,214.91,214.85,4.655]
[1737078449419,0.7003293,214.9,214.83,11.42514247]
[1737078449717,1.5155,214.93,214.8,11.42514247]
[1737078449920,0.70040566,214.92,214.83,11.42514247]
[1737078450116,5.22,214.94,214.83,11.42514247]
[1737078450520,0.70032619,214.93,214.78,1.4385]
[1737078450719,11.42514247,214.91,214.78,1.4385]
[1737078450925,16.64514247,214.94,214.78,1.4385]
[1737078451125,0.70037607,214.93,214.84,4.6553]
[1737078451325,2.12217607,214.93,214.84,4.6553]
[1737078451526,0.70037607,214.92,214.84,4.6553]
[1737078451820,11.42514247,214.91,214.78,1.4385]
[1737078452016,0.70037607,214.9,214.78,1.4385]
[1737078452826,11.42514247,214.88,214.78,1.4385]
[1737078453026,4.655,214.86,214.8,4.6561]
[1737078453425,0.70055922,214.85,214.8,4.6561]
[1737078453828,0.70055922,214.85,214.78,6.0949]
[1737078454031,4.6553,214.84,214.78,1.4385]
[1737078454936,11.42514247,214.88,214.78,1.4385]
[1737078455141,4.6551,214.85,214.78,1.4385]
[1737078455340,5.28,214.87,214.78,1.4385]
[1737078455534,9.9347,214.87,214.78,1.4385]
[1737078455736,5.28,214.87,214.78,1.4385]
[1737078456038,0.7005078,214.86,214.78,1.4385]
[1737078456238,5.28,214.87,214.78,1.4385]
[1737078456434,0.70054287,214.86,214.78,1.4385]
[1737078456739,5.28,214.87,214.8,11.42514247]
[1737078456939,6.7018,214.93,214.8,11.42514247]
[1737078457141,0.70033956,214.92,214.8,11.42514247]
[1737078457341,4.6538,214.91,214.8,11.42514247]
[1737078457544,6.7018,214.93,214.8,11.42514247]
[1737078457841,0.70034991,214.92,214.8,11.42514247]
[1737078458043,4.6542,214.89,214.83,4.6553]
[1737078458241,5.28,214.91,214.8,11.42514247]
[1737078458543,4.6533,214.94,214.89,4.6541]
[1737078458739,0.7002605,214.93,214.89,4.6541]
[1737078459039,4.6533,214.94,214.89,4.6541]
[1737078459547,4.6533,214.94,214.83,11.42514247]
[1737078459747,5.35365036,214.93,214.88,4.6544]
[1737078459940,4.6534,214.93,214.88,4.6544]
[1737078460344,4.6539,214.91,214.86,4.6547]
[1737078460539,1.4584,214.95,214.8,11.42514247]
[1737078460740,12.1254728,214.94,214.8,11.42514247]
[1737078460941,0.70033033,214.93,214.8,11.42514247]
[1737078461242,4.6544,214.89,214.84,4.6553]
[1737078461441,14.45534247,214.94,214.8,11.42514247]
[1737078461643,0.7003544,214.93,214.8,11.42514247]
[1737078462544,4.654,214.9,214.84,4.6552]
[1737078462738,0.70041935,214.89,214.8,11.42514247]
[1737078462942,0.70041935,214.88,214.78,1.4385]
[1737078463143,0.70041935,214.87,214.78,1.4385]
[1737078463344,4.6544,214.89,214.81,4.6557]
[1737078463647,11.42514247,214.91,214.78,1.4385]
[1737078463847,0.70043382,214.9,214.78,1.4385]
[1737078464049,4.6544,214.88,214.82,4.6555]
[1737078464237,11.42514247,214.91,214.78,1.4385]
[1737078464442,0.7004251,214.9,214.78,1.4385]
[1737078464844,11.42514247,214.88,214.58,6.18789786]
[1737078465044,5.94045435,214.87,214.73,11.42514247]
[1737078465244,4.6556,214.83,214.76,4.6568]
[1737078465443,11.42514247,214.85,214.73,11.42514247]
[1737078465852,4.6559,214.81,214.7,15.77534247]
[1737078466157,11.42514247,214.82,214.7,1.4569]
[1737078466346,4.6568,214.78,214.71,4.6581]
[1737078466545,2.945,214.83,214.7,11.42514247]
[1737078466746,11.42514247,214.81,214.67,11.42514247]
[1737078466951,0.7008686,214.8,214.67,11.42514247]
[1737078467253,4.657,214.76,214.7,4.6581]
[1737078467850,4.6573,214.75,214.69,4.6585]
[1737078468050,16.68514247,214.78,214.64,11.42514247]
[1737078468250,4.6576,214.74,214.64,11.42514247]
[1737078468449,16.68514247,214.78,214.64,11.42514247]
[1737078468650,0.70096772,214.77,214.64,11.42514247]
[1737078469146,0.70096772,214.77,214.71,4.6581]
[1737078469147,4.6572,214.76,214.71,4.6581]
[1737078469350,5.26,214.78,214.64,11.42514247]
[1737078469649,9.9168,214.78,214.67,11.42514247]
[1737078470348,5.26,214.78,214.67,11.42514247]
[1737078470747,4.6564,214.79,214.67,11.42514247]
[1737078471452,5.26,214.8,214.75,4.6572]
[1737078471652,5.26,214.8,214.63,6.7504]
[1737078471653,5.26,214.87,214.73,11.42514247]
[1737078471851,5.26,214.87,214.76,11.42514247]
[1737078471852,0.70074498,214.85,214.76,11.42514247]
[1737078472048,5.26,214.87,214.76,11.42514247]
[1737078472446,11.441,214.92,214.85,4.655]
[1737078472654,5.26,214.92,214.82,11.42514247]
[1737078472848,5.26,214.92,214.8,1.5132]
[1737078473049,4.654,214.9,214.82,4.6555]
[1737078473247,5.26,214.92,214.82,4.6555]
[1737078473447,0.70045697,214.91,214.82,4.6555]
[1737078473647,4.6547,214.87,214.8,6.1692]
[1737078473947,5.26,214.92,214.76,18.31971917]
[1737078474244,0.70052563,214.91,214.76,18.31971917]
[1737078474444,18.31971917,214.9,214.74,1.5132]
[1737078474750,0.70052563,214.89,214.74,1.5132]
[1737078474951,4.6555,214.83,214.76,4.6568]
[1737078475145,1.4662,214.89,214.74,1.5132]
[1737078475350,0.70074529,214.88,214.74,1.5132]
[1737078475655,18.31971917,214.86,214.68,18.31971917]
[1737078475850,2.24564529,214.85,214.69,1.4902]
[1737078476050,0.70074529,214.84,214.69,1.4902]
[1737078476250,5.28,214.83,214.69,1.4902]
[1737078476450,4.656,214.81,214.75,4.6572]
[1737078476651,5.28,214.83,214.69,1.4902]
[1737078476847,5.28,214.83,214.72,18.31971917]
[1737078478552,1.5236,214.92,214.76,18.31971917]
[1737078478755,0.70048456,214.91,214.8,4.656]
[1737078479248,4.6551,214.85,214.79,4.6563]
[1737078479448,4.6551,214.85,214.73,3.0516]
[1737078479958,4.6554,214.84,214.73,3.0516]
[1737078480548,4.655,214.86,214.79,4.6563]
[1737078480746,18.31971917,214.9,214.79,4.6563]
[1737078481045,4.6557,214.82,214.75,4.6571]
[1737078481248,5.26,214.84,214.75,4.6571]
[1737078481950,4.6559,214.81,214.75,4.6571]
[1737078482253,5.26,214.84,214.69,1.4902]
[1737078482444,18.31971917,214.89,214.72,18.31971917]
[1737078482644,5.96071366,214.88,214.72,18.31971917]
[1737078482846,0.70071366,214.87,214.72,18.31971917]
[1737078483153,4.6552,214.85,214.72,18.31971917]
[1737078483353,5.26,214.88,214.72,18.31971917]
[1737078483553,5.26,214.89,214.76,18.31971917]
[1737078483750,5.26,214.89,214.77,1.4876]
[1737078483956,0.70054047,214.88,214.77,1.4876]
[1737078484156,5.26,214.9,214.77,1.4876]
[1737078484357,4.6547,214.87,214.77,1.4876]
[1737078484859,5.26,214.9,214.83,4.6555]
[1737078485051,6.7836,214.92,214.77,1.4876]
[1737078485245,105.47971917,214.97,214.8,18.31971917]
[1737078485445,0.70029402,214.95,214.81,1.4937]
[1737078485654,0.70032486,214.94,214.81,1.4937]
[1737078485853,87.16,214.97,214.81,1.4937]
[1737078486054,0.70029757,214.96,214.81,1.4937]
[1737078486251,7.67917802,214.96,214.81,1.4937]
[1737078486447,0.70029757,214.95,214.81,1.4937]
[1737078486647,0.70029757,214.94,214.81,1.4937]
[1737078486850,4.6538,214.91,214.85,4.6549]
[1737078487151,4.6538,214.91,214.81,1.4937]
[1737078487453,6.97965391,214.96,214.81,1.4937]
[1737078487652,0.70041537,214.95,214.81,1.4937]
[1737078488159,0.70033944,214.94,214.9,4.6539]
[1737078488457,11.63355081,214.96,214.87,4.6545]
[1737078488655,0.70028839,214.95,214.84,18.31971917]
[1737078488847,11.63355081,214.96,214.84,18.31971917]
[1737078489154,92.42,214.97,214.84,18.31971917]
[1737078489155,87.16,214.97,214.84,18.31971917]
[1737078489346,91.8125,214.97,214.84,18.31971917]
[1737078489548,91.8125,214.97,214.81,1.4937]
[1737078489549,18.31971917,215.05,214.88,18.31971917]
[1737078489748,0.70008908,214.99,214.88,18.31971917]
[1737078490459,5.35218908,214.99,214.88,18.31971917]
[1737078490653,0.70008908,214.98,214.92,4.6533]
[1737078490853,11.49738316,215.0,214.88,18.31971917]
[1737078491049,0.700174,214.99,214.88,18.31971917]
[1737078491350,4.6526,214.97,214.92,4.6535]
[1737078491556,4.5173,215.0,214.88,18.31971917]
[1737078491855,0.70015338,214.99,214.88,18.31971917]
[1737078492555,0.70015338,214.99,214.84,18.31971917]
[1737078492752,0.70015338,214.99,214.88,18.31971917]
[1737078492959,0.70015338,214.99,214.97,4.6524]
[1737078493154,5.26,215.04,214.89,3.014]
[1737078493351,0.70005498,215.03,214.9,11.43676691]
[1737078493656,4.6521,214.99,214.93,4.6533]
[1737078493854,0.70005785,214.98,214.89,3.014]
[1737078494059,11.43676691,215.01,214.89,3.014]
[1737078494255,4.6525,214.97,214.92,4.6535]
[1737078494461,6.98008316,215.0,214.92,4.6535]
[1737078494658,0.70006297,214.99,214.92,4.6535]
[1737078494857,0.70006297,214.98,214.92,4.6535]
[1737078495051,4.6527,214.96,214.87,11.43676691]
[1737078495255,0.70006297,214.95,214.87,11.43676691]
[1737078496158,0.70006297,214.95,214.9,4.6539]
[1737078496364,4.6527,214.96,214.9,4.6539]
[1737078496555,0.70015893,214.95,214.9,4.6539]
[1737078496861,5.96015893,214.95,214.84,11.43676691]
[1737078497055,0.70015893,214.94,214.84,11.43676691]
[1737078497257,0.700313,214.93,214.84,11.43676691]
[1737078497452,4.6538,214.91,214.81,12.93046691]
[1737078497652,0.700313,214.9,214.81,12.93046691]
[1737078497961,16.69676691,214.95,214.81,12.93046691]
[1737078498261,0.70037164,214.94,214.81,12.93046691]
[1737078498457,11.43676691,214.92,214.76,11.43676691]
[1737078498660,0.70037164,214.91,214.76,11.43676691]
[1737078499164,11.43676691,214.92,214.76,11.43676691]
[1737078499460,11.43676691,214.89,214.76,11.43676691]
[1737078499661,4.6553,214.84,214.79,4.6563]
[1737078500357,0.70062385,214.83,214.79,4.6563]
[1737078500761,0.70062385,214.83,214.74,1.4884]
[1737078501059,0.70062385,214.83,214.7,11.43676691]
[1737078501060,0.70062385,214.82,214.7,11.43676691]
[1737078501956,11.43676691,215.05,214.79,11.43676691]
[1737078502156,7.67606853,214.95,214.85,11.43676691]
[1737078502361,6.97547737,214.95,214.85,11.43676691]
[1737078502662,6.1229,214.96,214.85,11.43676691]
[1737078502860,12.90696691,214.96,214.82,11.43676691]
[1737078503063,4.6532,214.94,214.86,4.6548]
[1737078503255,0.69486216,214.93,214.82,11.43676691]
[1737078503451,0.69486216,214.93,214.81,1.5492]
[1737078503754,0.69485168,214.92,214.81,1.5492]
[1737078503952,0.69485168,214.97,214.81,1.5492]
[1737078504261,0.69485168,214.96,214.81,1.5492]
[1737078504461,23.55201462,214.98,214.9,4.6539]
[1737078504462,0.69485168,214.95,214.9,4.6539]
[1737078504761,0.69483199,214.94,214.84,18.31201462]
[1737078504960,5.24,214.98,214.92,4.6534]
[1737078505263,0.69478022,214.97,214.84,18.31201462]
[1737078505457,19.78221462,215.02,214.91,4.6536]
[1737078505458,4.6521,214.99,214.91,4.6536]
[1737078505661,0.69478022,214.98,214.84,18.31201462]
[1737078505865,0.69478022,214.97,214.84,18.31201462]
[1737078506062,0.69478022,214.96,214.84,18.31201462]
[1737078506261,0.69478022,214.95,214.84,18.31201462]
[1737078506459,0.69478022,214.94,214.84,18.31201462]
[1737078506661,12.20940724,215.01,214.84,18.31201462]
[1737078506861,0.69482313,215.0,214.84,18.31201462]
[1737078507063,4.6526,214.97,214.9,4.6539]
[1737078507364,0.69482313,214.96,214.9,4.6539]
[1737078507559,0.69481924,214.95,214.9,4.6539]
[1737078507760,0.69481924,214.94,214.9,4.6539]
[1737078507955,0.69482464,214.93,214.84,18.31201462]
[1737078508160,4.6527,214.96,214.84,18.31201462]
[1737078508459,0.69483244,214.95,214.91,4.6537]
[1737078508657,4.6524,214.98,214.91,4.6537]
[1737078508861,0.69478845,214.97,214.91,4.6537]
[1737078509164,0.69478845,214.97,214.93,4.6533]
[1737078509364,0.69478845,214.97,214.84,18.31201462]
[1737078510263,0.6947512,214.96,214.92,4.6535]
[1737078510459,0.6947512,214.95,214.92,4.6535]
[1737078510663,4.6525,214.97,214.84,18.31201462]
[1737078510866,0.69480502,214.96,214.84,18.31201462]
[1737078511066,0.69480502,214.95,214.82,1.4717]
[1737078511361,19.00681964,214.94,214.8,1.4627]
[1737078511566,10.68839006,214.93,214.8,1.4627]
[1737078511864,4.6542,214.89,214.83,4.6555]
[1737078512264,0.69500426,214.88,214.8,1.4627]
[1737078512563,19.0,214.77,214.61,49.5031829]
[1737078512766,18.31201462,214.83,214.55,8.2752864]
[1737078512767,18.31201462,214.63,214.55,8.2752864]
[1737078512961,18.31201462,214.57,214.55,8.2752864]
[1737078513164,18.31201462,214.57,214.56,24.17034224]
[1737078513866,150.29061562,214.57,214.32,4.5576]
[1737078514065,18.31201462,214.47,214.32,2.9978]
[1737078514367,193.40973381,214.4,214.32,2.9978]
[1737078514671,35.25592285,214.39,214.28,18.31201462]
[1737078514971,79.24878985,214.38,214.31,18.31201462]
[1737078515169,79.24878985,214.38,214.27,18.31201462]
[1737078515468,35.25592285,214.37,214.31,4.6666]
[1737078515664,191.98225603,214.33,214.27,18.31201462]
[1737078515968,35.25592285,214.32,214.3,4.6669]
[1737078516165,32.99472285,214.31,214.3,4.6669]
[1737078516566,236.45307718,214.31,214.3,4.6669]
[1737078516767,236.45307718,214.31,214.27,18.31201462]
[1737078516966,192.46021018,214.3,214.26,4.6677]
[1737078517165,192.46021018,214.3,214.21,18.31201462]
[1737078517360,196.76546567,214.3,214.21,18.31201462]
[1737078517568,195.52471417,214.29,214.21,18.31201462]
[1737078517867,3.06450399,214.28,214.21,18.31201462]
[1737078518070,3.06450399,214.27,214.1,6.74]
[1737078518364,3.06450399,214.26,214.24,4.6682]
[1737078518568,120.44846136,214.25,214.14,18.31201462]
[1737078518767,3.05769375,214.24,214.18,18.31201462]
[1737078518962,90.10266437,214.15,214.06,18.31201462]
[1737078519170,79.14106437,214.15,214.14,18.31201462]
[1737078519370,67.50506438,214.15,214.14,18.31201462]
[1737078519565,88.04307571,214.25,214.14,18.31201462]
[1737078519772,53.14513007,214.21,214.14,18.31201462]
[1737078520066,25.81483007,214.21,214.2,4.6692]
[1737078520372,191.98225603,214.33,214.2,25.17201462]
[1737078520570,3.04336185,214.32,214.2,25.17201462]
[1737078520768,3.04336185,214.31,214.23,4.6683]
[1737078520964,3.04336185,214.3,214.2,25.17201462]
[1737078521272,3.04336185,214.3,214.2,18.31201462]
[1737078521769,4.26472758,214.29,214.15,18.31201462]
[1737078521961,3.04336185,214.28,214.15,18.31201462]
[1737078522165,3.04336185,214.27,214.15,18.31201462]
[1737078522363,3.04336185,214.26,214.15,18.31201462]
[1737078522566,3.03426343,214.25,214.15,18.31201462]
[1737078522772,4.26472758,214.28,214.15,18.31201462]
[1737078522773,3.03426343,214.24,214.15,18.31201462]
[1737078522968,3.03426343,214.23,214.15,18.31201462]
[1737078523169,3.03426343,214.22,214.15,18.31201462]
[1737078523466,4.26472758,214.24,214.19,18.31201462]
[1737078523665,191.98225603,214.33,214.23,18.31201462]
[1737078523864,3.02801777,214.32,214.27,18.31201462]
[1737078524171,191.98225603,214.33,214.23,18.31201462]
[1737078524172,3.02801777,214.31,214.23,18.31201462]
[1737078524369,3.02801777,214.3,214.19,18.31201462]
[1737078524573,3.02470334,214.29,214.19,18.31201462]
[1737078524774,0.4867303,214.23,214.19,18.31201462]
[1737078525575,4.37229801,214.22,214.19,18.31201462]
[1737078526076,4.37229801,214.21,214.16,4.67]
[1737078526573,4.37229801,214.2,214.16,4.67]
[1737078527170,4.37229801,214.19,214.16,4.67]
[1737078527472,4.37229801,214.19,214.17,4.6697]
[1737078527678,9.801e-05,214.19,214.17,4.6697]
[1737078527976,0.4867303,214.23,214.15,18.31201462]
[1737078528170,0.4867303,214.23,214.19,18.31201462]
[1737078528580,0.4867303,214.23,214.21,4.6689]
[1737078528874,3.03e-05,214.23,214.21,4.6689]
[1737078529475,3.03e-05,214.23,214.19,18.31201462]
[1737078529676,3.03e-05,214.23,214.2,4.669]
[1737078529982,3.03e-05,214.23,214.19,18.31201462]
[1737078530278,3.03e-05,214.23,214.21,4.6689]
[1737078530672,18.31201462,214.39,214.19,18.31201462]
[1737078530880,3.00897694,214.38,214.19,18.31201462]
[1737078531174,18.31201462,214.32,214.14,6.84]
[1737078531484,3.00900355,214.31,214.17,18.31201462]
[1737078531678,3.00900355,214.3,214.14,6.84]
[1737078531978,4.6678,214.27,214.13,18.31201462]
[1737078532180,3.00900355,214.26,214.13,18.31201462]
[1737078532379,4.6686,214.23,214.12,4.6707]
[1737078532877,4.6682,214.25,214.13,4.6706]
[1737078533183,3.00585697,214.24,214.09,18.31201462]
[1737078533379,18.31201462,214.28,214.09,18.31201462]
[1737078533676,4.668,214.26,214.15,4.6701]
[1737078533873,3.00421713,214.25,214.09,18.31201462]
[1737078534079,21.20731462,214.29,214.09,18.31201462]
[1737078534279,3.00402373,214.28,214.09,18.31201462]
[1737078534580,3.00402373,214.27,214.09,18.31201462]
[1737078534877,3.00402373,214.26,214.06,87.34]
[1737078535078,3.00322054,214.25,214.08,18.31201462]
[1737078535278,3.00322054,214.24,214.12,18.31201462]
[1737078535589,2.8953,214.29,214.12,18.31201462]
[1737078535779,3.00259195,214.28,214.12,18.31201462]
[1737078535974,4.6679,214.26,214.06,105.65201462]
[1737078536281,21.20731462,214.29,214.1,18.31201462]
[1737078536483,3.0022171,214.28,214.1,18.31201462]
[1737078536683,3.0022171,214.27,214.1,18.31201462]
[1737078536879,3.0022171,214.26,214.14,4.6703]
[1737078537082,18.31201462,214.25,214.06,105.65201462]
[1737078537486,3.00176052,214.24,214.06,105.65201462]
[1737078537686,18.31201462,214.25,214.06,105.65201462]
[1737078537884,3.00240018,214.24,214.06,105.65201462]
[1737078538080,18.31201462,214.21,214.02,18.31201462]
[1737078538584,18.31201462,214.21,214.14,4.6704]
[1737078538786,4.24945062,214.2,214.14,4.6704]
[1737078539286,4.24945062,214.2,214.06,18.31201462]
[1737078539487,4.24945062,214.2,214.1,18.31201462]
[1737078539885,4.24945062,214.23,214.1,18.31201462]
[1737078540286,4.24945062,214.23,214.18,4.6696]
[1737078540680,4.24945062,214.23,214.21,4.6688]
[1737078540879,4.24945062,214.23,214.08,6.76]
[1737078541080,18.31201462,214.25,214.08,25.07201462]
[1737078541383,4.6689,214.22,214.13,4.6706]
[1737078541584,4.24945062,214.24,214.04,18.31201462]
[1737078541884,4.24945062,214.21,214.08,18.31201462]
[1737078542279,4.24945062,214.21,214.11,4.6709]
[1737078542480,4.24945062,214.21,214.08,18.31201462]
[1737078542787,4.6683,214.24,214.17,4.6698]
[1737078543092,4.6678,214.27,214.08,18.31201462]
[1737078543383,7.25659101,214.26,214.18,4.6696]
[1737078543584,3.00714039,214.25,214.18,4.6696]
[1737078544092,4.24945062,214.24,214.18,4.6696]
[1737078544288,3.00837726,214.23,214.14,4.6704]
[1737078544485,4.24945062,214.24,214.04,18.31201462]
[1737078544678,5.154e-05,214.08,214.04,18.31201462]
[1737078545283,5.154e-05,214.08,214.07,4.672]
[1737078549787,6.68,214.24,214.04,18.31201462]
[1737078549990,3.01297718,214.23,214.08,18.31201462]
[1737078550193,3.01297718,214.22,214.08,18.31201462]
[1737078550394,3.01297718,214.21,214.08,18.31201462]
[1737078550691,3.01297718,214.2,214.17,4.6696]
[1737078550891,3.01297718,214.19,214.17,4.6696]
[1737078551087,3.01297718,214.18,214.15,4.6702]
[1737078551290,3.01297718,214.17,214.04,18.31201462]
[1737078551495,2.68780052,214.16,214.04,18.31201462]
[1737078551695,4.6694,214.19,214.11,4.6709]
[1737078551995,18.31201462,214.25,214.11,4.6709]
[1737078552296,18.31201462,214.17,214.0,5.23958615]
[1737078552495,4.6158,214.16,214.07,4.672]
[1737078553090,4.6158,214.16,214.0,5.23958615]
[1737078553091,4.6158,214.16,214.05,4.6723]
[1737078553291,18.31201462,214.13,213.99,18.36834839]
[1737078553599,18.31201462,214.13,213.94,18.31201462]
[1737078553788,4.6718,214.08,213.99,4.6736]
[1737078553987,4.6718,214.08,213.94,18.31201462]
[1737078554193,18.31201462,214.13,213.94,18.31201462]
[1737078554399,18.31201462,214.13,214.02,4.6731]
[1737078554596,4.6158,214.16,213.98,18.31201462]
[1737078555389,4.6158,214.16,214.09,4.6716]
[1737078555593,4.6158,214.16,213.98,18.31201462]
[1737078556593,9.2859,214.16,214.08,4.6718]
[1737078556789,9.2859,214.16,213.98,18.31201462]
[1737078556994,4.6158,214.16,214.02,18.31201462]
[1737078557294,21.71094405,214.16,214.02,18.31201462]
[1737078557498,9.24141845,214.15,214.02,18.31201462]
[1737078557798,13.85721845,214.16,214.02,18.31201462]
[1737078557999,4.6158,214.16,214.06,4.6722]